{"text_format":"3","workbook":"xlsx","n_sheets":3,"sheets":["DÉBUT","PLAN BUDGÉTAIRE MARKETING","GRAPHIQUE DE CATÉGORIE"],"not_rendered":{"charts":1,"defined_names":4,"pivot_tables":1},"read":"whole","date_system":"1900"}

{"sheet":"DÉBUT","index":0,"n_rows":7,"n_cols":2,"rows_kept":7}
[null,"À propos du modèle"]
[null,"Créez un plan budgétaire marketing et un graphique de catégorie dans ce classeur."]
[null,"Entrez les catégories, les quantités et les coûts dans le tableau de la feuille de calcul Plan budgétaire marketing. Les coûts d’événement et le total des prévisions marketing sont calculés automatiquement."]
[null,"Les graphiques en histogrammes groupés sont mis à jour automatiquement dans la feuille de calcul Graphique de catégorie."]
[null,"Remarque : "]
[null,"Des instructions supplémentaires sont disponibles dans la colonne A des feuilles de calcul PLAN BUDGÉTAIRE MARKETING et GRAPHIQUE DE CATÉGORIE. Ce texte a été intentionnellement masqué. Pour supprimer le texte, sélectionnez la colonne A et choisissez SUPPRIMER. Pour afficher le texte, sélectionnez la colonne A et changez la couleur de la police."]
[null,"Pour en savoir plus sur les tableaux, appuyez sur MAJ, puis sur F10 au sein d’un tableau, et sélectionnez les options TABLE et TEXTE DE REMPLACEMENT. Pour les tableaux croisés dynamiques, appuyez sur Maj puis F10 à l’intérieur du tableau, sélectionnez OPTIONS DU TABLEAU CROISÉ DYNAMIQUE, puis TEXTE DE REMPLACEMENT."]

{"sheet":"PLAN BUDGÉTAIRE MARKETING","index":1,"n_rows":61,"n_cols":7,"rows_kept":61,"merged":[[2,4,7,6],[3,1,3,2],[4,1,4,2],[5,1,5,2],[6,1,6,2]]}
["Utilisez cette feuille de calcul pour créer le plan budgétaire marketing. Des instructions utiles sur l’utilisation de cette feuille de calcul sont disponibles dans les cellules de cette colonne. Appuyez sur la flèche Bas pour commencer."]
["Le titre de ce classeur se trouve dans la cellule de droite.","PLAN BUDGÉTAIRE MARKETING"]
["Le segment pour filtrer les données par catégorie principale se trouve dans la cellule E3.",{"$nulls":3},"Le segment pour filtrer les données par catégorie principale se trouve dans cette cellule."]
["Entrez le nombre de participants dans la cellule D4.","NOMBRE DE PARTICIPANTS",null,50]
["Les coûts de l’événement sont calculés automatiquement dans la cellule D5.","COÛTS LIÉS À L’ÉVÉNEMENT",null,{"$f":"SUMIF(Données[Catégorie principale],\"Événement\",Données[Sous-total estimé])","v":{"v":2500,"d":"2,500.00 $"}}]
["Le prix de l’événement par personne est calculé automatiquement dans la cellule D6.","PRIX PAR PERSONNE POUR L’ÉVÉNEMENT",null,{"$f":"EventCosts/NumberOfAttendees","v":{"v":50,"d":"50.00 $"}}]
["Le grand total prévisionnel des coûts marketing sont calculés automatiquement dans la cellule D7.","TOTAL GÉNÉRAL ESTIMÉ DU BUDGET MARKETING",null,{"$f":"SUMIF(Données[Catégorie principale],\"<>Événement\",Données[Sous-total estimé])","v":{"v":45743,"d":"45,743.00 $"}}]
["Le sous-total est automatiquement calculé dans la cellule D8. L’instruction suivante figure dans la cellule A10.","SOUS-TOTAL",null,{"$f":"SUBTOTAL(109,Données[Sous-total estimé])","v":{"v":48243,"d":"48,243.00 $"}}]
[]
["Entrez les détails dans le tableau Données, à partir de la cellule de droite.","Catégorie principale","Catégorie secondaire","Quantité estimée","Coût estimé par repas","Sous-total estimé","Notes"]
[null,"Recherche","Frais liés au cabinet d’études",2,{"v":2300,"d":"2,300.00 $"},{"$f":"Données[[#This Row],[Quantité estimée]]*Données[[#This Row],[Coût estimé par repas]]","v":{"v":4600,"d":"4,600.00 $"}}]
[null,"Recherche","Étude web",1,{"v":1100,"d":"1,100.00 $"},{"$f":"Données[[#This Row],[Quantité estimée]]*Données[[#This Row],[Coût estimé par repas]]","v":{"v":1100,"d":"1,100.00 $"}}]
[null,"Recherche","Étude indépendante",3,{"v":300,"d":"300.00 $"},{"$f":"Données[[#This Row],[Quantité estimée]]*Données[[#This Row],[Coût estimé par repas]]","v":{"v":900,"d":"900.00 $"}}]
[null,"Recherche","Autres études",2,{"v":250,"d":"250.00 $"},{"$f":"Données[[#This Row],[Quantité estimée]]*Données[[#This Row],[Coût estimé par repas]]","v":{"v":500,"d":"500.00 $"}}]
[null,"Communications","Brochures promotionnelles",{"v":5000,"d":"5,000"},{"v":0.15,"d":"0.15 $"},{"$f":"Données[[#This Row],[Quantité estimée]]*Données[[#This Row],[Coût estimé par repas]]","v":{"v":750,"d":"750.00 $"}}]
[null,"Communications","Télévision",5,{"v":4000,"d":"4,000.00 $"},{"$f":"Données[[#This Row],[Quantité estimée]]*Données[[#This Row],[Coût estimé par repas]]","v":{"v":20000,"d":"20,000.00 $"}}]
[null,"Communications","Radio",13,{"v":350,"d":"350.00 $"},{"$f":"Données[[#This Row],[Quantité estimée]]*Données[[#This Row],[Coût estimé par repas]]","v":{"v":4550,"d":"4,550.00 $"}}]
[null,"Communications","Web",1,{"v":350,"d":"350.00 $"},{"$f":"Données[[#This Row],[Quantité estimée]]*Données[[#This Row],[Coût estimé par repas]]","v":{"v":350,"d":"350.00 $"}}]
[null,"Sociaux","Sociaux",null,null,{"$f":"Données[[#This Row],[Quantité estimée]]*Données[[#This Row],[Coût estimé par repas]]","v":{"v":0,"d":"0.00 $"}}]
[null,"Sociaux","Adhésions",3,{"v":50,"d":"50.00 $"},{"$f":"Données[[#This Row],[Quantité estimée]]*Données[[#This Row],[Coût estimé par repas]]","v":{"v":150,"d":"150.00 $"}}]
[null,"Sociaux","Affiliations",2,{"v":20,"d":"20.00 $"},{"$f":"Données[[#This Row],[Quantité estimée]]*Données[[#This Row],[Coût estimé par repas]]","v":{"v":40,"d":"40.00 $"}}]
[null,"Sociaux","Abonnements",2,{"v":32,"d":"32.00 $"},{"$f":"Données[[#This Row],[Quantité estimée]]*Données[[#This Row],[Coût estimé par repas]]","v":{"v":64,"d":"64.00 $"}}]
[null,"Événement","Nombre de participants",50,null,{"$f":"Données[[#This Row],[Quantité estimée]]*Données[[#This Row],[Coût estimé par repas]]","v":{"v":0,"d":"0.00 $"}}]
[null,"Événement","Repas (petit-déjeuner, déjeuner ou dîner)",null,null,{"$f":"Données[[#This Row],[Quantité estimée]]*Données[[#This Row],[Coût estimé par repas]]","v":{"v":0,"d":"0.00 $"}}]
[null,"Événement","Alimentation",null,{"v":23,"d":"23.00 $"},{"$f":"Données[[#This Row],[Quantité estimée]]*Données[[#This Row],[Coût estimé par repas]]","v":{"v":0,"d":"0.00 $"}}]
[null,"Événement","T.V.A. (10 %)",null,{"v":2.3000000000000003,"d":"2.30 $"},{"$f":"Données[[#This Row],[Quantité estimée]]*Données[[#This Row],[Coût estimé par repas]]","v":{"v":0,"d":"0.00 $"}}]
[null,"Événement","Pourboire sur la nourriture et les boissons (20 %)",null,{"v":5.0600000000000005,"d":"5.06 $"},{"$f":"Données[[#This Row],[Quantité estimée]]*Données[[#This Row],[Coût estimé par repas]]","v":{"v":0,"d":"0.00 $"}}]
[null,"Événement","Service de voiturier",1,{"v":300,"d":"300.00 $"},{"$f":"Données[[#This Row],[Quantité estimée]]*Données[[#This Row],[Coût estimé par repas]]","v":{"v":300,"d":"300.00 $"}}]
[null,"Événement","Divertissement n°1",1,{"v":800,"d":"800.00 $"},{"$f":"Données[[#This Row],[Quantité estimée]]*Données[[#This Row],[Coût estimé par repas]]","v":{"v":800,"d":"800.00 $"}}]
[null,"Événement","Divertissement n°2",1,{"v":1200,"d":"1,200.00 $"},{"$f":"Données[[#This Row],[Quantité estimée]]*Données[[#This Row],[Coût estimé par repas]]","v":{"v":1200,"d":"1,200.00 $"}}]
[null,"Événement","Autres services",1,{"v":200,"d":"200.00 $"},{"$f":"Données[[#This Row],[Quantité estimée]]*Données[[#This Row],[Coût estimé par repas]]","v":{"v":200,"d":"200.00 $"}}]
[null,"Services audiovisuels","Système de sonorisation standard et podium",1,{"v":0,"d":"0.00 $"},{"$f":"Données[[#This Row],[Quantité estimée]]*Données[[#This Row],[Coût estimé par repas]]","v":{"v":0,"d":"0.00 $"}},"Inclus dans la location de la salle (généralement)"]
[null,"Services audiovisuels","Écran",1,{"v":0,"d":"0.00 $"},{"$f":"Données[[#This Row],[Quantité estimée]]*Données[[#This Row],[Coût estimé par repas]]","v":{"v":0,"d":"0.00 $"}},"Inclus dans la location de la salle (généralement)"]
[null,"Services audiovisuels","Location de projecteur de données XGA/vidéoprojecteur",1,{"v":45,"d":"45.00 $"},{"$f":"Données[[#This Row],[Quantité estimée]]*Données[[#This Row],[Coût estimé par repas]]","v":{"v":45,"d":"45.00 $"}}]
[null,"Services audiovisuels","Souris sans fil",1,{"v":12,"d":"12.00 $"},{"$f":"Données[[#This Row],[Quantité estimée]]*Données[[#This Row],[Coût estimé par repas]]","v":{"v":12,"d":"12.00 $"}}]
[null,"Services audiovisuels","Multiprises",1,{"v":0,"d":"0.00 $"},{"$f":"Données[[#This Row],[Quantité estimée]]*Données[[#This Row],[Coût estimé par repas]]","v":{"v":0,"d":"0.00 $"}},"Inclus dans la location de la salle (généralement)"]
[null,"Services audiovisuels","Rallonges",1,{"v":0,"d":"0.00 $"},{"$f":"Données[[#This Row],[Quantité estimée]]*Données[[#This Row],[Coût estimé par repas]]","v":{"v":0,"d":"0.00 $"}},"Inclus dans la location de la salle (généralement)"]
[null,"Services audiovisuels","Micro cravate",1,{"v":0,"d":"0.00 $"},{"$f":"Données[[#This Row],[Quantité estimée]]*Données[[#This Row],[Coût estimé par repas]]","v":{"v":0,"d":"0.00 $"}},"Inclus dans la location de la salle (généralement)"]
[null,"Services audiovisuels","Main d’œuvre et techniciens AV",1,{"v":300,"d":"300.00 $"},{"$f":"Données[[#This Row],[Quantité estimée]]*Données[[#This Row],[Coût estimé par repas]]","v":{"v":300,"d":"300.00 $"}}]
[null,"Services audiovisuels","T.V.A. (20 %)",null,{"v":31.415999999999997,"d":"31.42 $"},{"$f":"Données[[#This Row],[Quantité estimée]]*Données[[#This Row],[Coût estimé par repas]]","v":{"v":0,"d":"0.00 $"}}]
[null,"Frais supplémentaires","Invitations \n(coûts liés à l’impression et à l’affranchissement)",null,{"v":834,"d":"834.00 $"},{"$f":"Données[[#This Row],[Quantité estimée]]*Données[[#This Row],[Coût estimé par repas]]","v":{"v":0,"d":"0.00 $"}}]
[null,"Frais supplémentaires","Temps et dépenses (T&D)",null,{"v":600,"d":"600.00 $"},{"$f":"Données[[#This Row],[Quantité estimée]]*Données[[#This Row],[Coût estimé par repas]]","v":{"v":0,"d":"0.00 $"}}]
[null,"Frais supplémentaires","T&D Personnel de l’entreprise",null,{"v":200,"d":"200.00 $"},{"$f":"Données[[#This Row],[Quantité estimée]]*Données[[#This Row],[Coût estimé par repas]]","v":{"v":0,"d":"0.00 $"}},"<Nombre de personnes sur site>"]
[null,"Frais supplémentaires","T&D Témoignages clients",null,{"v":100,"d":"100.00 $"},{"$f":"Données[[#This Row],[Quantité estimée]]*Données[[#This Row],[Coût estimé par repas]]","v":{"v":0,"d":"0.00 $"}}]
[null,"Cadeaux publicitaires","Cadeau publicitaire n°1",25,{"v":10,"d":"10.00 $"},{"$f":"Données[[#This Row],[Quantité estimée]]*Données[[#This Row],[Coût estimé par repas]]","v":{"v":250,"d":"250.00 $"}},"<Description du cadeau publicitaire>"]
[null,"Cadeaux publicitaires","Cadeau publicitaire n°2",25,{"v":5,"d":"5.00 $"},{"$f":"Données[[#This Row],[Quantité estimée]]*Données[[#This Row],[Coût estimé par repas]]","v":{"v":125,"d":"125.00 $"}},"<Description du cadeau publicitaire>"]
[null,"Promotions","Cadeaux publicitaires liés au produit",50,{"v":8,"d":"8.00 $"},{"$f":"Données[[#This Row],[Quantité estimée]]*Données[[#This Row],[Coût estimé par repas]]","v":{"v":400,"d":"400.00 $"}}]
[null,"Promotions","Remises sur les produits",300,{"v":3,"d":"3.00 $"},{"$f":"Données[[#This Row],[Quantité estimée]]*Données[[#This Row],[Coût estimé par repas]]","v":{"v":900,"d":"900.00 $"}}]
[null,"Promotions","Offres spéciales",200,{"v":2.5,"d":"2.50 $"},{"$f":"Données[[#This Row],[Quantité estimée]]*Données[[#This Row],[Coût estimé par repas]]","v":{"v":500,"d":"500.00 $"}}]
[null,"Publicité","Brochures (création et fabrication)",{"v":5000,"d":"5,000"},{"v":0.15,"d":"0.15 $"},{"$f":"Données[[#This Row],[Quantité estimée]]*Données[[#This Row],[Coût estimé par repas]]","v":{"v":750,"d":"750.00 $"}}]
[null,"Publicité","Publipostage",{"v":15000,"d":"15,000"},{"v":0.04,"d":"0.04 $"},{"$f":"Données[[#This Row],[Quantité estimée]]*Données[[#This Row],[Coût estimé par repas]]","v":{"v":600,"d":"600.00 $"}}]
[null,"Publicité","Cartes postales",{"v":15000,"d":"15,000"},{"v":0.03,"d":"0.03 $"},{"$f":"Données[[#This Row],[Quantité estimée]]*Données[[#This Row],[Coût estimé par repas]]","v":{"v":450,"d":"450.00 $"}}]
[null,"Publicité","Télévision",2,{"v":600,"d":"600.00 $"},{"$f":"Données[[#This Row],[Quantité estimée]]*Données[[#This Row],[Coût estimé par repas]]","v":{"v":1200,"d":"1,200.00 $"}}]
[null,"Publicité","Radio",4,{"v":300,"d":"300.00 $"},{"$f":"Données[[#This Row],[Quantité estimée]]*Données[[#This Row],[Coût estimé par repas]]","v":{"v":1200,"d":"1,200.00 $"}}]
[null,"Publicité","Journaux",6,{"v":220,"d":"220.00 $"},{"$f":"Données[[#This Row],[Quantité estimée]]*Données[[#This Row],[Coût estimé par repas]]","v":{"v":1320,"d":"1,320.00 $"}}]
[null,"Publicité","Panneaux d’affichage",2,{"v":556,"d":"556.00 $"},{"$f":"Données[[#This Row],[Quantité estimée]]*Données[[#This Row],[Coût estimé par repas]]","v":{"v":1112,"d":"1,112.00 $"}}]
[null,"Publicité","Publicité sur les bus",3,{"v":125,"d":"125.00 $"},{"$f":"Données[[#This Row],[Quantité estimée]]*Données[[#This Row],[Coût estimé par repas]]","v":{"v":375,"d":"375.00 $"}}]
[null,"Relations publiques","Événements caritatifs",3,{"v":200,"d":"200.00 $"},{"$f":"Données[[#This Row],[Quantité estimée]]*Données[[#This Row],[Coût estimé par repas]]","v":{"v":600,"d":"600.00 $"}}]
[null,"Relations publiques","Publicité",4,{"v":200,"d":"200.00 $"},{"$f":"Données[[#This Row],[Quantité estimée]]*Données[[#This Row],[Coût estimé par repas]]","v":{"v":800,"d":"800.00 $"}}]
[null,"Relations publiques","Promotions des employés",6,{"v":200,"d":"200.00 $"},{"$f":"Données[[#This Row],[Quantité estimée]]*Données[[#This Row],[Coût estimé par repas]]","v":{"v":1200,"d":"1,200.00 $"}}]
[null,"Relations publiques","Parrainages",3,{"v":200,"d":"200.00 $"},{"$f":"Données[[#This Row],[Quantité estimée]]*Données[[#This Row],[Coût estimé par repas]]","v":{"v":600,"d":"600.00 $"}}]

{"sheet":"GRAPHIQUE DE CATÉGORIE","index":2,"n_rows":8,"n_cols":13,"rows_kept":8,"merged":[[7,1,7,12]]}
["Les graphiques de type tableau croisé dynamique et catégorie figurent dans cette feuille de calcul. Des instructions utiles sur l’utilisation de cette feuille de calcul sont disponibles dans les cellules de cette colonne. Appuyez sur la flèche Bas pour commencer."]
["Le titre de ce classeur se trouve dans la cellule de droite.","PLAN BUDGÉTAIRE MARKETING"]
[]
["Un tableau croisé dynamique de synthèse affichant les catégories principales et leurs sous-totaux commence dans la cellule C4. L’instruction suivante figure dans la cellule A8.",null,"Catégorie principale"]
[null,null,"Cadeaux publicitaires","Communications","Événement","Frais supplémentaires","Promotions","Publicité","Recherche","Relations publiques","Services audiovisuels","Sociaux","Total général"]
[null,"Sous-total estimé",{"v":0,"d":"0.00 $"},{"v":7007,"d":"7,007.00 $"},{"v":357,"d":"357.00 $"},{"v":25650,"d":"25,650.00 $"},{"v":2500,"d":"2,500.00 $"},{"v":375,"d":"375.00 $"},{"v":254,"d":"254.00 $"},{"v":1800,"d":"1,800.00 $"},{"v":3200,"d":"3,200.00 $"},{"v":7100,"d":"7,100.00 $"},{"v":48243,"d":"48,243.00 $"}]
[]
["Le graphique croisé dynamique de synthèse affichant les catégories principales et leurs sous-totaux estimés se trouve dans la cellule à droite."," Le graphique croisé dynamique de synthèse affichant les catégories principales et leurs sous-totaux estimés se trouve dans cette cellule."]